[Event "Late-Titled-Tuesday-Blitz-March-26-2024"]
[Site "Chess.com"]
[Date "2024.03.26"]
[Round "1"]
[White "promen1999"]
[Black "stasOR4ik"]
[Result "1-0"]
[WhiteElo "2832"]
[BlackElo "2438"]
[TimeControl "180+1"]
[EndTime "14:06:04 PDT"]
[Termination "promen1999 won by resignation"]

1. d4 {[%clk 0:02:53.9]} 1... d5 {[%clk 0:02:59.6]} 2. c4 {[%clk 0:02:51.5]}
2... e6 {[%clk 0:02:58.6]} 3. cxd5 {[%clk 0:02:49.5]} 3... exd5 {[%clk
0:02:58.7]} 4. Nc3 {[%clk 0:02:49.6]} 4... Nf6 {[%clk 0:02:58.4]} 5. Bf4 {[%clk
0:02:48.1]} 5... c6 {[%clk 0:02:58.3]} 6. e3 {[%clk 0:02:47.6]} 6... Bd6 {[%clk
0:02:57.6]} 7. Bxd6 {[%clk 0:02:47.3]} 7... Qxd6 {[%clk 0:02:58.5]} 8. Bd3
{[%clk 0:02:47.2]} 8... O-O {[%clk 0:02:58.5]} 9. h3 {[%clk 0:02:45.9]} 9... Na6
{[%clk 0:02:55.8]} 10. Nf3 {[%clk 0:02:44.3]} 10... Nc7 {[%clk 0:02:55.7]} 11.
O-O {[%clk 0:02:43.7]} 11... Bd7 {[%clk 0:02:50.2]} 12. Ne5 {[%clk 0:02:42.5]}
12... Rae8 {[%clk 0:02:50.1]} 13. f4 {[%clk 0:02:41.7]} 13... a6 {[%clk
0:02:31.5]} 14. Qd2 {[%clk 0:02:37.8]} 14... Bc8 {[%clk 0:02:29.7]} 15. a4
{[%clk 0:02:35.5]} 15... Nd7 {[%clk 0:02:29.7]} 16. Qc2 {[%clk 0:02:32.8]} 16...
g6 {[%clk 0:01:49.4]} 17. Rae1 {[%clk 0:02:31.8]} 17... f6 {[%clk 0:01:49.2]}
18. Ng4 {[%clk 0:02:31.8]} 18... Kg7 {[%clk 0:01:44.2]} 19. Qf2 {[%clk
0:02:30.2]} 19... h5 {[%clk 0:01:36.6]} 20. Nh2 {[%clk 0:02:28.8]} 20... c5
{[%clk 0:01:31.4]} 21. Nf3 {[%clk 0:02:27.8]} 21... cxd4 {[%clk 0:01:27.7]} 22.
Nxd4 {[%clk 0:02:24.5]} 22... Nc5 {[%clk 0:01:25]} 23. Bb1 {[%clk 0:02:24.2]}
23... Ne4 {[%clk 0:01:22]} 24. Nxe4 {[%clk 0:02:11.3]} 24... dxe4 {[%clk
0:01:22.9]} 25. Rc1 {[%clk 0:02:11.4]} 25... Nd5 {[%clk 0:01:16.4]} 26. Rfd1
{[%clk 0:02:10.2]} 26... Qb6 {[%clk 0:01:13.7]} 27. f5 {[%clk 0:01:53.7]} 27...
g5 {[%clk 0:01:05.2]} 28. Ne6+ {[%clk 0:01:33]} 28... Bxe6 {[%clk 0:01:03.7]}
29. fxe6 {[%clk 0:01:33.3]} 29... Rd8 {[%clk 0:00:18.3]} 30. Bxe4 {[%clk
0:01:25.5]} 30... Nxe3 {[%clk 0:00:14.7]} 31. Re1 {[%clk 0:01:24.2]} 31... Rd2
{[%clk 0:00:06.2]} 32. Qxe3 {[%clk 0:01:23]} 32... Qxe3+ {[%clk 0:00:05.2]} 33.
Rxe3 {[%clk 0:01:23.9]} 33... Rxb2 {[%clk 0:00:05.3]} 34. Rc7+ {[%clk
0:01:21.9]} 34... Kg8 {[%clk 0:00:05.1]} 35. e7 {[%clk 0:01:21.1]} 35... Re8
{[%clk 0:00:05.3]} 36. Bg6 {[%clk 0:01:21.2]} 1-0

[Event "Late-Titled-Tuesday-Blitz-March-26-2024"]
[Site "Chess.com"]
[Date "2024.03.26"]
[Round "1"]
[White "TheCount"]
[Black "GAO"]
[Result "1-0"]
[WhiteElo "2638"]
[BlackElo "2314"]
[TimeControl "180+1"]
[EndTime "14:06:05 PDT"]
[Termination "TheCount won by resignation"]

1. d4 {[%clk 0:03:00.1]} 1... Nf6 {[%clk 0:02:58.9]} 2. c4 {[%clk 0:02:59.8]}
2... e6 {[%clk 0:02:59]} 3. Nf3 {[%clk 0:02:59.4]} 3... d5 {[%clk 0:02:57.9]} 4.
cxd5 {[%clk 0:02:53.1]} 4... exd5 {[%clk 0:02:54.8]} 5. a3 {[%clk 0:02:53.4]}
5... Be6 {[%clk 0:02:52.9]} 6. Nc3 {[%clk 0:02:53.1]} 6... Bd6 {[%clk
0:02:53.5]} 7. Bg5 {[%clk 0:02:52.6]} 7... c6 {[%clk 0:02:51.5]} 8. e3 {[%clk
0:02:50.7]} 8... Nbd7 {[%clk 0:02:51.1]} 9. Bd3 {[%clk 0:02:44.8]} 9... h6
{[%clk 0:02:50.5]} 10. Bh4 {[%clk 0:02:44.4]} 10... O-O {[%clk 0:02:50.7]} 11.
Qc2 {[%clk 0:02:42.9]} 11... Re8 {[%clk 0:02:47]} 12. O-O {[%clk 0:02:42.4]}
12... Rc8 {[%clk 0:02:44.2]} 13. b4 {[%clk 0:02:41.6]} 13... Qc7 {[%clk
0:02:35.1]} 14. Bg3 {[%clk 0:02:39.4]} 14... a6 {[%clk 0:02:26.4]} 15. Na4
{[%clk 0:02:27.6]} 15... Bxg3 {[%clk 0:02:01.1]} 16. hxg3 {[%clk 0:02:28.5]}
16... Ne4 {[%clk 0:02:01.4]} 17. Nc5 {[%clk 0:02:25.1]} 17... Bf5 {[%clk
0:01:52.2]} 18. Rac1 {[%clk 0:02:17.4]} 18... Bg6 {[%clk 0:01:42.9]} 19. Nxd7
{[%clk 0:02:06.1]} 19... Qxd7 {[%clk 0:01:41.7]} 20. Ne5 {[%clk 0:02:06.5]}
20... Qd6 {[%clk 0:01:37.2]} 21. g4 {[%clk 0:01:31.9]} 21... Rxe5 {[%clk
0:01:28.3]} 22. dxe5 {[%clk 0:01:30.8]} 22... Qxe5 {[%clk 0:01:29.2]} 23. f3
{[%clk 0:01:20.3]} 23... Ng3 {[%clk 0:01:22.7]} 24. Rfe1 {[%clk 0:01:20.9]}
24... Bxd3 {[%clk 0:01:08]} 25. Qxd3 {[%clk 0:01:21.8]} 25... Re8 {[%clk
0:01:07.5]} 26. Kf2 {[%clk 0:01:17.8]} 26... f5 {[%clk 0:00:54.1]} 27. Qd4
{[%clk 0:01:18.2]} 27... Qd6 {[%clk 0:00:49.1]} 28. Qf4 {[%clk 0:01:18.4]} 28...
Qf6 {[%clk 0:00:21.7]} 29. Qxg3 {[%clk 0:01:15.7]} 29... Qb2+ {[%clk 0:00:21.6]}
30. Kg1 {[%clk 0:01:16.1]} 30... Qxa3 {[%clk 0:00:17.6]} 31. gxf5 {[%clk
0:01:15.3]} 31... Qxb4 {[%clk 0:00:17.7]} 32. f6 {[%clk 0:01:14.9]} 32... g5
{[%clk 0:00:16.2]} 33. Qc7 {[%clk 0:01:13.9]} 33... Qf8 {[%clk 0:00:14.1]} 34.
Qxb7 {[%clk 0:01:13.7]} 34... Qxf6 {[%clk 0:00:13.9]} 35. Qxc6 {[%clk
0:01:14.1]} 35... Qf7 {[%clk 0:00:09.8]} 36. Qxa6 {[%clk 0:01:14.1]} 36... g4
{[%clk 0:00:08]} 1-0

[Event "Late-Titled-Tuesday-Blitz-March-26-2024"]
[Site "Chess.com"]
[Date "2024.03.26"]
[Round "1"]
[White "martinmena"]
[Black "RantomOpening"]
[Result "0-1"]
[WhiteElo "2254"]
[BlackElo "2608"]
[TimeControl "180+1"]
[EndTime "14:06:05 PDT"]
[Termination "RantomOpening won on time"]

1. c4 {[%clk 0:02:58.3]} 1... e6 {[%clk 0:02:59.4]} 2. g3 {[%clk 0:02:58.4]}
2... d5 {[%clk 0:02:58.2]} 3. Bg2 {[%clk 0:02:59.3]} 3... Nf6 {[%clk 0:02:56.5]}
4. Nf3 {[%clk 0:02:59.5]} 4... Be7 {[%clk 0:02:56]} 5. Kf1 {[%clk 0:02:58.7]}
5... O-O {[%clk 0:02:52.2]} 6. h3 {[%clk 0:02:50.6]} 6... d4 {[%clk 0:02:52.3]}
7. d3 {[%clk 0:02:50.5]} 7... c5 {[%clk 0:02:52.6]} 8. Kg1 {[%clk 0:02:50.2]}
8... Nc6 {[%clk 0:02:53]} 9. Kh2 {[%clk 0:02:49.5]} 9... e5 {[%clk 0:02:53.5]}
10. Bg5 {[%clk 0:02:46.3]} 10... h6 {[%clk 0:02:51.3]} 11. Bxf6 {[%clk
0:02:44.1]} 11... Bxf6 {[%clk 0:02:52.2]} 12. Nbd2 {[%clk 0:02:44.2]} 12... Be7
{[%clk 0:02:49.7]} 13. g4 {[%clk 0:02:43]} 13... f5 {[%clk 0:02:44.4]} 14. gxf5
{[%clk 0:02:42.2]} 14... Bxf5 {[%clk 0:02:45.3]} 15. Ng1 {[%clk 0:02:29.7]}
15... Qd7 {[%clk 0:02:30.6]} 16. Be4 {[%clk 0:02:27.5]} 16... Bg5 {[%clk
0:02:25.3]} 17. Bxf5 {[%clk 0:02:18.9]} 17... Qxf5 {[%clk 0:02:25.8]} 18. Ngf3
{[%clk 0:02:17.6]} 18... Bxd2 {[%clk 0:02:25]} 19. Qxd2 {[%clk 0:02:15.6]} 19...
e4 {[%clk 0:02:25.4]} 20. dxe4 {[%clk 0:02:12.9]} 20... Qxe4 {[%clk 0:02:26.3]}
21. Rag1 {[%clk 0:02:08.9]} 21... Rae8 {[%clk 0:02:18.5]} 22. Qxh6 {[%clk
0:02:03.2]} 22... Rf7 {[%clk 0:01:31.5]} 23. Qd2 {[%clk 0:00:50.7]} 23... Qxe2
{[%clk 0:01:22.5]} 24. Qxe2 {[%clk 0:00:42.8]} 24... Rxe2 {[%clk 0:01:23.4]} 25.
Kg3 {[%clk 0:00:42.2]} 25... Rxb2 {[%clk 0:01:16.7]} 0-1

[Event "Late-Titled-Tuesday-Blitz-March-26-2024"]
[Site "Chess.com"]
[Date "2024.03.26"]
[Round "1"]
[White "giomar27"]
[Black "dretch"]
[Result "0-1"]
[WhiteElo "2460"]
[BlackElo "2864"]
[TimeControl "180+1"]
[EndTime "14:06:07 PDT"]
[Termination "dretch won by resignation"]

1. d4 {[%clk 0:03:00.9]} 1... d5 {[%clk 0:02:59.9]} 2. Nc3 {[%clk 0:03:00.7]}
2... e6 {[%clk 0:02:58.1]} 3. Bf4 {[%clk 0:02:59.4]} 3... Bb4 {[%clk 0:02:57.1]}
4. e3 {[%clk 0:02:58.8]} 4... Nf6 {[%clk 0:02:56.7]} 5. Bd3 {[%clk 0:02:55.8]}
5... c5 {[%clk 0:02:56.4]} 6. Nf3 {[%clk 0:02:52.5]} 6... c4 {[%clk 0:02:54.3]}
7. Be2 {[%clk 0:02:42.2]} 7... Ne4 {[%clk 0:02:54.2]} 8. O-O {[%clk 0:02:18.5]}
8... Bxc3 {[%clk 0:02:52.1]} 9. bxc3 {[%clk 0:02:18]} 9... Nxc3 {[%clk
0:02:42.2]} 10. Qd2 {[%clk 0:02:17.9]} 10... Nxe2+ {[%clk 0:02:42.3]} 11. Qxe2
{[%clk 0:02:18.8]} 11... O-O {[%clk 0:02:41.9]} 12. a4 {[%clk 0:02:15.9]} 12...
Nd7 {[%clk 0:02:38.6]} 13. e4 {[%clk 0:02:14.2]} 13... dxe4 {[%clk 0:02:37.3]}
14. Qxe4 {[%clk 0:02:15.1]} 14... Nf6 {[%clk 0:02:37]} 15. Qe2 {[%clk
0:02:15.1]} 15... Nd5 {[%clk 0:02:34.8]} 16. Bg3 {[%clk 0:02:13.2]} 16... c3
{[%clk 0:02:32]} 17. a5 {[%clk 0:02:07.6]} 17... Bd7 {[%clk 0:02:15.8]} 18. Rfb1
{[%clk 0:02:06.9]} 18... b6 {[%clk 0:02:06.3]} 19. Qa6 {[%clk 0:01:58.3]} 19...
Qc8 {[%clk 0:02:01.7]} 20. Qd3 {[%clk 0:01:53.4]} 20... Rd8 {[%clk 0:01:57.9]}
21. Ne5 {[%clk 0:01:53]} 21... Be8 {[%clk 0:01:57.8]} 22. Nc4 {[%clk 0:01:48.9]}
22... Qc6 {[%clk 0:01:45.6]} 23. Ne5 {[%clk 0:01:40.4]} 23... Qc7 {[%clk
0:01:42.1]} 24. Nc4 {[%clk 0:01:31.2]} 24... Qe7 {[%clk 0:01:41.2]} 25. h4
{[%clk 0:01:05]} 25... b5 {[%clk 0:01:38.3]} 26. Ne5 {[%clk 0:01:04.9]} 26... b4
{[%clk 0:01:37.8]} 27. a6 {[%clk 0:01:03]} 27... f6 {[%clk 0:01:36.8]} 28. Nc4
{[%clk 0:01:02]} 28... Bb5 {[%clk 0:01:36.2]} 29. Ra5 {[%clk 0:01:00.4]} 29...
Qd7 {[%clk 0:01:32.1]} 30. Qe2 {[%clk 0:00:52.5]} 30... Kh8 {[%clk 0:01:23.4]}
31. Re1 {[%clk 0:00:38.8]} 31... Rac8 {[%clk 0:01:20.8]} 32. Rxb5 {[%clk
0:00:35.4]} 32... Qxb5 {[%clk 0:01:20.3]} 33. Nd6 {[%clk 0:00:35.7]} 33... Qxe2
{[%clk 0:01:19.3]} 34. Rxe2 {[%clk 0:00:36.3]} 34... b3 {[%clk 0:01:15.4]} 35.
Nf7+ {[%clk 0:00:35.9]} 35... Kg8 {[%clk 0:01:15]} 36. Nxd8 {[%clk 0:00:36.1]}
36... b2 {[%clk 0:01:14.6]} 37. Re1 {[%clk 0:00:34.8]} 37... Rxd8 {[%clk
0:01:14.1]} 38. Kf1 {[%clk 0:00:31]} 38... Nb4 {[%clk 0:01:12]} 39. Ke2 {[%clk
0:00:30.5]} 39... Rxd4 {[%clk 0:01:11.4]} 40. Bb8 {[%clk 0:00:29]} 40... Nxc2
{[%clk 0:01:07]} 41. Rb1 {[%clk 0:00:28.7]} 41... Na3 {[%clk 0:01:05.9]} 0-1

[Event "Late-Titled-Tuesday-Blitz-March-26-2024"]
[Site "Chess.com"]
[Date "2024.03.26"]
[Round "1"]
[White "Zorbos"]
[Black "Hikaru"]
[Result "0-1"]
[WhiteElo "2538"]
[BlackElo "3275"]
[TimeControl "180+1"]
[EndTime "14:06:10 PDT"]
[Termination "Hikaru won on time"]

1. e4 {[%clk 0:03:00.9]} 1... a6 {[%clk 0:02:59.6]} 2. d4 {[%clk 0:03:00.7]}
2... c6 {[%clk 0:03:00]} 3. Nf3 {[%clk 0:03:00.4]} 3... d5 {[%clk 0:03:00]} 4.
Nc3 {[%clk 0:02:58.6]} 4... Bg4 {[%clk 0:02:58.4]} 5. e5 {[%clk 0:02:44.1]} 5...
e6 {[%clk 0:02:57.9]} 6. Be2 {[%clk 0:02:32.3]} 6... c5 {[%clk 0:02:58.1]} 7.
dxc5 {[%clk 0:02:28.3]} 7... Bxc5 {[%clk 0:02:54.4]} 8. Bf4 {[%clk 0:02:24.8]}
8... Nc6 {[%clk 0:02:53.9]} 9. O-O {[%clk 0:02:00.3]} 9... Nge7 {[%clk
0:02:50.8]} 10. h3 {[%clk 0:01:58.9]} 10... Bxf3 {[%clk 0:02:50.8]} 11. Bxf3
{[%clk 0:01:58.8]} 11... Ng6 {[%clk 0:02:51.1]} 12. Bh2 {[%clk 0:01:55.4]} 12...
Ngxe5 {[%clk 0:02:45.3]} 13. Re1 {[%clk 0:01:05.8]} 13... Nxf3+ {[%clk
0:02:42.9]} 14. Qxf3 {[%clk 0:01:05.7]} 14... O-O {[%clk 0:02:43.8]} 15. a3
{[%clk 0:00:59.7]} 15... Bd4 {[%clk 0:02:36.5]} 16. Rad1 {[%clk 0:00:57.4]}
16... Rc8 {[%clk 0:02:35.8]} 17. Qg4 {[%clk 0:00:20]} 17... Qf6 {[%clk
0:02:32.3]} 18. Bg3 {[%clk 0:00:10.5]} 18... Bxc3 {[%clk 0:02:26.5]} 19. bxc3
{[%clk 0:00:10.6]} 19... Qg6 {[%clk 0:02:26.8]} 20. Qe2 {[%clk 0:00:09.6]} 20...
Na5 {[%clk 0:02:25.8]} 21. Be5 {[%clk 0:00:09.4]} 21... Nc4 {[%clk 0:02:23.6]}
22. Bd4 {[%clk 0:00:09]} 22... Rfe8 {[%clk 0:02:23.7]} 23. Rb1 {[%clk
0:00:08.4]} 23... b5 {[%clk 0:02:20.2]} 24. a4 {[%clk 0:00:07]} 24... bxa4
{[%clk 0:02:16.4]} 25. Rb7 {[%clk 0:00:03.5]} 25... a3 {[%clk 0:02:16.8]} 26.
Ra7 {[%clk 0:00:03.7]} 26... e5 {[%clk 0:02:12.6]} 27. Be3 {[%clk 0:00:01.9]}
27... h6 {[%clk 0:02:10.5]} 28. Rxa6 {[%clk 0:00:01.6]} 28... Qxa6 {[%clk
0:01:00.7]} 0-1

[Event "Late-Titled-Tuesday-Blitz-March-26-2024"]
[Site "Chess.com"]
[Date "2024.03.26"]
[Round "1"]
[White "dolynachess"]
[Black "MITerryble"]
[Result "0-1"]
[WhiteElo "2509"]
[BlackElo "2993"]
[TimeControl "180+1"]
[EndTime "14:06:12 PDT"]
[Termination "MITerryble won on time"]

1. d4 {[%clk 0:02:57.7]} 1... d5 {[%clk 0:02:56.4]} 2. c4 {[%clk 0:02:57.1]}
2... dxc4 {[%clk 0:02:56.9]} 3. Nf3 {[%clk 0:02:56.5]} 3... Nf6 {[%clk
0:02:57.3]} 4. g3 {[%clk 0:02:56.4]} 4... b5 {[%clk 0:02:53.2]} 5. a4 {[%clk
0:02:54.9]} 5... c6 {[%clk 0:02:48.7]} 6. Bg2 {[%clk 0:02:53.6]} 6... Bb7 {[%clk
0:02:48.4]} 7. O-O {[%clk 0:02:51.2]} 7... e6 {[%clk 0:02:45.6]} 8. Nc3 {[%clk
0:02:51.6]} 8... a6 {[%clk 0:02:45.7]} 9. e4 {[%clk 0:02:47.2]} 9... b4 {[%clk
0:02:39.6]} 10. e5 {[%clk 0:02:46.3]} 10... Nd5 {[%clk 0:02:38.2]} 11. Ne4
{[%clk 0:02:44.9]} 11... Nd7 {[%clk 0:02:27.4]} 12. a5 {[%clk 0:02:15.5]} 12...
Be7 {[%clk 0:02:08.3]} 13. Bg5 {[%clk 0:01:46.1]} 13... O-O {[%clk 0:02:05.9]}
14. Qc2 {[%clk 0:01:37.9]} 14... c5 {[%clk 0:01:48.4]} 15. dxc5 {[%clk
0:01:30.4]} 15... h6 {[%clk 0:01:36]} 16. Bxe7 {[%clk 0:01:28.6]} 16... Qxe7
{[%clk 0:01:36.9]} 17. Qxc4 {[%clk 0:01:28.3]} 17... Rfc8 {[%clk 0:01:33.3]} 18.
Rfc1 {[%clk 0:01:27.5]} 18... Rc7 {[%clk 0:01:30]} 19. Qd4 {[%clk 0:00:57.7]}
19... Bc6 {[%clk 0:01:30.4]} 20. Nd6 {[%clk 0:00:46.8]} 20... b3 {[%clk
0:01:30.8]} 21. Nd2 {[%clk 0:00:42.2]} 21... Rb8 {[%clk 0:01:31.1]} 22. Ra3
{[%clk 0:00:23]} 22... Rb4 {[%clk 0:01:30.4]} 23. Rc4 {[%clk 0:00:23]} 23...
Rxc4 {[%clk 0:01:29]} 24. N2xc4 {[%clk 0:00:21.4]} 24... Bb5 {[%clk 0:01:23.6]}
25. Rxb3 {[%clk 0:00:13.7]} 25... Nxc5 {[%clk 0:01:18.6]} 26. Ra3 {[%clk
0:00:12.6]} 26... Nd7 {[%clk 0:01:01.2]} 27. Nxb5 {[%clk 0:00:09.9]} 27... axb5
{[%clk 0:01:02.1]} 28. Nd6 {[%clk 0:00:10.2]} 28... Rc1+ {[%clk 0:01:03]} 29.
Bf1 {[%clk 0:00:09.8]} 29... f6 {[%clk 0:01:03.9]} 0-1

[Event "Late-Titled-Tuesday-Blitz-March-26-2024"]
[Site "Chess.com"]
[Date "2024.03.26"]
[Round "1"]
[White "Matrix3x3a"]
[Black "JiiHart"]
[Result "1-0"]
[WhiteElo "2594"]
[BlackElo "2198"]
[TimeControl "180+1"]
[EndTime "14:06:16 PDT"]
[Termination "Matrix3x3a won on time"]

1. d4 {[%clk 0:03:00.9]} 1... d5 {[%clk 0:02:58.6]} 2. c4 {[%clk 0:03:00.6]}
2... c5 {[%clk 0:02:58.9]} 3. cxd5 {[%clk 0:02:52.6]} 3... Qxd5 {[%clk
0:02:54.6]} 4. Nf3 {[%clk 0:02:52.4]} 4... cxd4 {[%clk 0:02:54.8]} 5. Nc3 {[%clk
0:02:51.4]} 5... Qd8 {[%clk 0:02:52.2]} 6. Qxd4 {[%clk 0:02:40.9]} 6... Qxd4
{[%clk 0:02:48.9]} 7. Nxd4 {[%clk 0:02:41.8]} 7... Nf6 {[%clk 0:02:49.3]} 8.
Ndb5 {[%clk 0:02:38.8]} 8... Na6 {[%clk 0:02:49.3]} 9. g3 {[%clk 0:02:38.5]}
9... Bd7 {[%clk 0:02:42.6]} 10. Bg2 {[%clk 0:02:37.7]} 10... Bc6 {[%clk
0:02:38.9]} 11. Bxc6+ {[%clk 0:02:31.3]} 11... bxc6 {[%clk 0:02:38.7]} 12. Nd4
{[%clk 0:02:31]} 12... Rc8 {[%clk 0:02:13.2]} 13. O-O {[%clk 0:02:28.6]} 13...
e6 {[%clk 0:02:04.6]} 14. Rd1 {[%clk 0:02:27.6]} 14... Be7 {[%clk 0:01:58.5]}
15. Bg5 {[%clk 0:02:27.4]} 15... O-O {[%clk 0:01:57.7]} 16. Rac1 {[%clk
0:02:20.5]} 16... Rfd8 {[%clk 0:01:40.6]} 17. Ne4 {[%clk 0:02:07.9]} 17... Nxe4
{[%clk 0:00:32.3]} 18. Bxe7 {[%clk 0:02:06.1]} 18... Rd7 {[%clk 0:00:32.8]} 19.
Ba3 {[%clk 0:01:59.2]} 19... Rcd8 {[%clk 0:00:32.7]} 20. f3 {[%clk 0:01:58.8]}
20... c5 {[%clk 0:00:27.6]} 21. fxe4 {[%clk 0:01:55.4]} 21... cxd4 {[%clk
0:00:24.9]} 22. e5 {[%clk 0:01:51.6]} 22... Rd5 {[%clk 0:00:18.8]} 23. Bd6
{[%clk 0:01:47.2]} 23... f6 {[%clk 0:00:19]} 24. Be7 {[%clk 0:01:44.7]} 24...
R8d7 {[%clk 0:00:17.1]} 25. exf6 {[%clk 0:01:44.4]} 25... gxf6 {[%clk 0:00:17]}
26. Bxf6 {[%clk 0:01:43.1]} 26... e5 {[%clk 0:00:17.3]} 27. Bg5 {[%clk 0:01:38]}
27... Nc5 {[%clk 0:00:17.2]} 28. Bd2 {[%clk 0:01:37.6]} 28... Ne4 {[%clk
0:00:17.2]} 29. Be1 {[%clk 0:01:32.2]} 29... Nf6 {[%clk 0:00:15.8]} 30. Kg2
{[%clk 0:01:29.6]} 30... e4 {[%clk 0:00:16.1]} 31. Rc4 {[%clk 0:01:25.3]} 31...
e3 {[%clk 0:00:15.2]} 32. Rd3 {[%clk 0:01:21.2]} 32... Ne4 {[%clk 0:00:14.1]}
33. b4 {[%clk 0:01:16.8]} 33... a6 {[%clk 0:00:08.1]} 34. a4 {[%clk 0:01:16.2]}
34... h5 {[%clk 0:00:03.2]} 35. h3 {[%clk 0:01:15.7]} 35... h4 {[%clk
0:00:02.7]} 36. g4 {[%clk 0:01:13.6]} 1-0

[Event "Late-Titled-Tuesday-Blitz-March-26-2024"]
[Site "Chess.com"]
[Date "2024.03.26"]
[Round "1"]
[White "noblerone"]
[Black "Jospem"]
[Result "1/2-1/2"]
[WhiteElo "2533"]
[BlackElo "3079"]
[TimeControl "180+1"]
[EndTime "14:06:17 PDT"]
[Termination "Game drawn by repetition"]

1. d4 {[%clk 0:03:00.9]} 1... Nf6 {[%clk 0:02:59.6]} 2. Nf3 {[%clk 0:02:58.9]}
2... e6 {[%clk 0:02:59.3]} 3. Bg5 {[%clk 0:02:59.3]} 3... b6 {[%clk 0:02:59.3]}
4. Nbd2 {[%clk 0:02:55]} 4... Bb7 {[%clk 0:02:58.5]} 5. e4 {[%clk 0:02:55.6]}
5... Be7 {[%clk 0:02:51.6]} 6. e5 {[%clk 0:02:51.5]} 6... Nd5 {[%clk 0:02:49.9]}
7. Bxe7 {[%clk 0:02:50.5]} 7... Qxe7 {[%clk 0:02:49]} 8. g3 {[%clk 0:02:51]}
8... O-O {[%clk 0:02:41.2]} 9. Bg2 {[%clk 0:02:51]} 9... d6 {[%clk 0:02:38.1]}
10. O-O {[%clk 0:02:50.1]} 10... dxe5 {[%clk 0:02:36.9]} 11. Nxe5 {[%clk
0:02:51]} 11... c5 {[%clk 0:02:35.5]} 12. dxc5 {[%clk 0:02:49.2]} 12... bxc5
{[%clk 0:02:32.7]} 13. Ndc4 {[%clk 0:02:46.5]} 13... Nc6 {[%clk 0:02:23.9]} 14.
Nxc6 {[%clk 0:02:46.4]} 14... Bxc6 {[%clk 0:02:24.8]} 15. Ne5 {[%clk 0:02:41]}
15... Bb7 {[%clk 0:02:19.9]} 16. a3 {[%clk 0:02:32.3]} 16... Rac8 {[%clk
0:02:09.9]} 17. c4 {[%clk 0:02:26.5]} 17... Nf6 {[%clk 0:02:09.2]} 18. Bxb7
{[%clk 0:02:20.7]} 18... Qxb7 {[%clk 0:02:10.1]} 19. Qe2 {[%clk 0:02:20.8]}
19... Rb8 {[%clk 0:02:04.5]} 20. Rab1 {[%clk 0:02:20.2]} 20... a5 {[%clk
0:02:00.1]} 21. h3 {[%clk 0:02:15.8]} 21... Rfd8 {[%clk 0:01:59.4]} 22. Qe3
{[%clk 0:02:09.6]} 22... Qc7 {[%clk 0:01:56.1]} 23. Nf3 {[%clk 0:01:54.9]} 23...
h6 {[%clk 0:01:54.1]} 24. b3 {[%clk 0:01:50.9]} 24... Qb7 {[%clk 0:01:43.6]} 25.
Rfe1 {[%clk 0:01:41.2]} 25... Rbc8 {[%clk 0:01:37.8]} 26. Red1 {[%clk
0:01:23.9]} 26... Rxd1+ {[%clk 0:01:35.4]} 27. Rxd1 {[%clk 0:01:24.8]} 27... a4
{[%clk 0:01:36.1]} 28. bxa4 {[%clk 0:01:13.8]} 28... Qa6 {[%clk 0:01:35.3]} 29.
Qb3 {[%clk 0:01:08.7]} 29... Qa8 {[%clk 0:01:34.9]} 30. Ne5 {[%clk 0:01:05.3]}
30... Rb8 {[%clk 0:01:35.3]} 31. Qc2 {[%clk 0:01:02.5]} 31... Qa6 {[%clk
0:01:35.6]} 32. Nd7 {[%clk 0:00:59.5]} 32... Nxd7 {[%clk 0:01:35.7]} 33. Rxd7
{[%clk 0:01:00.4]} 33... Qc6 {[%clk 0:01:36.5]} 34. Qd3 {[%clk 0:00:52.3]} 34...
Qxa4 {[%clk 0:01:33.5]} 35. Rd8+ {[%clk 0:00:51.6]} 35... Rxd8 {[%clk 0:01:34]}
36. Qxd8+ {[%clk 0:00:52.5]} 36... Kh7 {[%clk 0:01:34.8]} 37. Qd3+ {[%clk
0:00:52.5]} 37... f5 {[%clk 0:01:35.3]} 38. g4 {[%clk 0:00:49.5]} 38... Kg6
{[%clk 0:01:26.4]} 39. gxf5+ {[%clk 0:00:48.7]} 39... exf5 {[%clk 0:01:27.3]}
40. Qd6+ {[%clk 0:00:46.6]} 40... Kh7 {[%clk 0:01:27.8]} 41. Qxc5 {[%clk
0:00:44.7]} 41... Qd1+ {[%clk 0:01:28.1]} 42. Kg2 {[%clk 0:00:43.8]} 42... Qd3
{[%clk 0:01:29]} 43. Qd5 {[%clk 0:00:38.9]} 43... Qc2 {[%clk 0:01:29.3]} 44. a4
{[%clk 0:00:37.7]} 44... Qxa4 {[%clk 0:01:27.6]} 45. Qxf5+ {[%clk 0:00:36.4]}
45... Kh8 {[%clk 0:01:27.8]} 46. Qd5 {[%clk 0:00:36.7]} 46... Qb3 {[%clk
0:01:26.3]} 47. Qd8+ {[%clk 0:00:35.8]} 47... Kh7 {[%clk 0:01:25]} 48. Qd5
{[%clk 0:00:36.5]} 48... Kh8 {[%clk 0:01:22.7]} 49. Qe4 {[%clk 0:00:31.7]} 49...
Qa4 {[%clk 0:01:21.9]} 50. Qd5 {[%clk 0:00:30.3]} 50... Qb3 {[%clk 0:01:21.9]}
1/2-1/2